[Event "Titled Tuesday Blitz July 4 Late 2023"]
[White "Herman, Matthew"]
[Black "Sokolov, Andrei"]
[WhiteFideId "2028964"]
[BlackFideId "11600306"]
[WhiteElo "2491"]
[BlackElo "2264"]
[Result "1-0"]
[Round "8"]
[TimeControl "180+2"]
[Date "2023.07.04"]
[WhiteClock "0:00:12"]
[BlackClock "0:00:08"]
[Board "115"]

1. Nf3 {[%clk 0:03:00]}  d5 {[%clk 0:02:59]} 2. g3 {[%clk 0:03:00]}  Nf6 {[%clk 0:02:52]} 3. Bg2 {[%clk 0:03:00]}  Bf5 {[%clk 0:02:52]} 4. d3 {[%clk 0:02:59]}  e6 {[%clk 0:02:52]} 5. h3 {[%clk 0:02:59]}  c6 {[%clk 0:02:51]} 6. b3 {[%clk 0:02:58]}  Nbd7 {[%clk 0:02:51]} 7. Bb2 {[%clk 0:02:59]}  Be7 {[%clk 0:02:51]} 8. Nh4 {[%clk 0:02:54]}  Bg6 {[%clk 0:02:50]} 9. Nd2 {[%clk 0:02:52]}  O-O {[%clk 0:02:50]} 10. Nxg6 {[%clk 0:02:48]}  hxg6 {[%clk 0:02:49]} 11. e3 {[%clk 0:02:47]}  e5 {[%clk 0:02:49]} 12. a3 {[%clk 0:02:44]}  Re8 {[%clk 0:02:48]} 13. h4 {[%clk 0:02:26]}  Bd6 {[%clk 0:02:36]} 14. g4 {[%clk 0:02:06]}  Nf8 {[%clk 0:02:32]} 15. g5 {[%clk 0:02:00]}  N6h7 {[%clk 0:02:22]} 16. Qf3 {[%clk 0:01:22]}  a5 {[%clk 0:02:08]} 17. Kf1 {[%clk 0:01:06]}  a4 {[%clk 0:02:03]} 18. b4 {[%clk 0:01:06]}  Qd7 {[%clk 0:01:40]} 19. Bh3 {[%clk 0:00:55]}  Qe7 {[%clk 0:01:37]} 20. Bg2 {[%clk 0:00:47]}  Qe6 {[%clk 0:01:25]} 21. Rc1 {[%clk 0:00:37]}  Qf5 {[%clk 0:01:22]} 22. Qe2 {[%clk 0:00:19]}  e4 {[%clk 0:01:09]} 23. Bh3 {[%clk 0:00:18]}  exd3 {[%clk 0:00:58]} 24. cxd3 {[%clk 0:00:19]}  Qe5 {[%clk 0:00:24]} 25. Bxe5 {[%clk 0:00:19]}  Bxe5 {[%clk 0:00:25]} 26. Rc2 {[%clk 0:00:15]}  Ne6 {[%clk 0:00:23]} 27. Qf3 {[%clk 0:00:14]}  d4 {[%clk 0:00:21]} 28. Ne4 {[%clk 0:00:14]}  dxe3 {[%clk 0:00:19]} 29. fxe3 {[%clk 0:00:14]}  Bc7 {[%clk 0:00:17]} 30. Bxe6 {[%clk 0:00:13]}  Rxe6 {[%clk 0:00:17]} 31. h5 {[%clk 0:00:14]}  gxh5 {[%clk 0:00:16]} 32. Qxh5 {[%clk 0:00:14]}  Kf8 {[%clk 0:00:14]} 33. Qxh7 {[%clk 0:00:14]}  Ke7 {[%clk 0:00:14]} 34. Qxg7 {[%clk 0:00:14]}  Rf8 {[%clk 0:00:13]} 35. Qd4 {[%clk 0:00:13]}  Be5 {[%clk 0:00:12]} 36. Qc5+ {[%clk 0:00:13]}  Bd6 {[%clk 0:00:12]} 37. Nxd6 {[%clk 0:00:13]}  Rxd6 {[%clk 0:00:13]} 38. Qe5+ {[%clk 0:00:13]}  Re6 {[%clk 0:00:13]} 39. Qc7+ {[%clk 0:00:13]}  Ke8 {[%clk 0:00:14]} 40. e4 {[%clk 0:00:12]}  f6 {[%clk 0:00:12]} 41. g6 {[%clk 0:00:12]}  f5 {[%clk 0:00:11]} 42. e5 {[%clk 0:00:12]}  f4 {[%clk 0:00:10]} 43. Rh7 {[%clk 0:00:12]}  f3 {[%clk 0:00:08]} 44. Qd7# {[%clk 0:00:12]} 1-0


[Site "https://www.chess.com"]

[Event "Titled Tuesday Blitz July 4 Late 2023"]
[White "Cardozo Munar, Carlos Eduardo"]
[Black "Ferriz Barrios, Andres"]
[WhiteFideId "4409477"]
[BlackFideId "5104467"]
[WhiteElo "2337"]
[BlackElo "2188"]
[Result "0-1"]
[Round "8"]
[TimeControl "180+2"]
[Date "2023.07.04"]
[WhiteClock "0:00:00"]
[BlackClock "0:01:55"]
[Board "121"]

1. e4 {[%clk 0:03:00]}  e6 {[%clk 0:02:56]} 2. Nf3 {[%clk 0:02:59]}  d5 {[%clk 0:02:57]} 3. e5 {[%clk 0:02:59]}  c5 {[%clk 0:02:56]} 4. b4 {[%clk 0:03:00]}  cxb4 {[%clk 0:02:56]} 5. d4 {[%clk 0:03:00]}  Nc6 {[%clk 0:02:57]} 6. Bd3 {[%clk 0:02:57]}  a5 {[%clk 0:02:57]} 7. O-O {[%clk 0:02:57]}  Qb6 {[%clk 0:02:56]} 8. a3 {[%clk 0:02:52]}  b3 {[%clk 0:02:55]} 9. cxb3 {[%clk 0:02:49]}  Bd7 {[%clk 0:02:55]} 10. Be3 {[%clk 0:02:46]}  h5 {[%clk 0:02:55]} 11. Nbd2 {[%clk 0:02:44]}  Nh6 {[%clk 0:02:55]} 12. Rc1 {[%clk 0:02:41]}  Ng4 {[%clk 0:02:53]} 13. Bb1 {[%clk 0:02:38]}  Bxa3 {[%clk 0:02:51]} 14. Rc3 {[%clk 0:02:26]}  Nb4 {[%clk 0:02:49]} 15. Bg5 {[%clk 0:02:20]}  Bb5 {[%clk 0:02:48]} 16. Re1 {[%clk 0:02:13]}  Bb2 {[%clk 0:02:48]} 17. Rc5 {[%clk 0:02:04]}  Bxd4 {[%clk 0:02:46]} 18. Ne4 {[%clk 0:01:31]}  Bxc5 {[%clk 0:02:38]} 19. Nxc5 {[%clk 0:01:08]}  Qxc5 {[%clk 0:02:39]} 20. Qd2 {[%clk 0:01:05]}  Rc8 {[%clk 0:02:29]} 21. h3 {[%clk 0:00:54]}  Nh6 {[%clk 0:02:28]} 22. Qf4 {[%clk 0:00:41]}  Nd3 {[%clk 0:02:16]} 23. Bxd3 {[%clk 0:00:38]}  Bxd3 {[%clk 0:02:17]} 24. Nd4 {[%clk 0:00:37]}  Nf5 {[%clk 0:02:13]} 25. Nf3 {[%clk 0:00:32]}  Be4 {[%clk 0:02:10]} 26. Nd2 {[%clk 0:00:30]}  Bc2 {[%clk 0:02:01]} 27. Rc1 {[%clk 0:00:27]}  Qd4 {[%clk 0:02:01]} 28. Qf3 {[%clk 0:00:20]}  O-O {[%clk 0:01:57]} 29. g4 {[%clk 0:00:15]}  Be4 {[%clk 0:01:56]} 30. Nxe4 {[%clk 0:00:09]}  Rxc1+ {[%clk 0:01:55]} 31. Bxc1 {[%clk 0:00:08]}  dxe4 {[%clk 0:01:55]} 32. Qf4 {[%clk 0:00:08]}  hxg4 {[%clk 0:01:55]} 33. hxg4 {[%clk 0:00:08]}  Nh6 {[%clk 0:01:54]} 34. Be3 {[%clk 0:00:08]}  Qd1+ {[%clk 0:01:54]} 35. Kg2 {[%clk 0:00:08]}  Qxg4+ {[%clk 0:01:55]} 36. Qxg4 {[%clk 0:00:08]}  Nxg4 {[%clk 0:01:56]} 37. Bb6 {[%clk 0:00:00]}  Nxe5 {[%clk 0:01:55]} 0-1


[Site "https://www.chess.com"]

[Event "Titled Tuesday Blitz July 4 Late 2023"]
[White "campochess"]
[Black "Korpics, Zsolt"]
[BlackFideId "705241"]
[WhiteElo "2128"]
[BlackElo "2316"]
[Result "0-1"]
[Round "8"]
[TimeControl "180+2"]
[Date "2023.07.04"]
[WhiteClock "0:00:43"]
[BlackClock "0:00:08"]
[Board "124"]

1. e4 {[%clk 0:02:57]}  Nf6 {[%clk 0:02:54]} 2. Nc3 {[%clk 0:02:55]}  d5 {[%clk 0:02:52]} 3. exd5 {[%clk 0:02:55]}  Nxd5 {[%clk 0:02:51]} 4. Bc4 {[%clk 0:02:53]}  c6 {[%clk 0:02:49]} 5. Qf3 {[%clk 0:02:53]}  Be6 {[%clk 0:02:34]} 6. Nge2 {[%clk 0:02:51]}  Nd7 {[%clk 0:02:25]} 7. d4 {[%clk 0:02:47]}  N7f6 {[%clk 0:02:20]} 8. Bb3 {[%clk 0:02:39]}  g6 {[%clk 0:02:15]} 9. O-O {[%clk 0:02:39]}  Bg7 {[%clk 0:02:16]} 10. Ne4 {[%clk 0:02:34]}  Nxe4 {[%clk 0:02:14]} 11. Qxe4 {[%clk 0:02:34]}  O-O {[%clk 0:02:15]} 12. c4 {[%clk 0:02:33]}  Bf5 {[%clk 0:02:10]} 13. Qh4 {[%clk 0:02:32]}  Nb6 {[%clk 0:01:33]} 14. Bh6 {[%clk 0:02:22]}  Bxh6 {[%clk 0:01:09]} 15. Qxh6 {[%clk 0:02:21]}  Bd3 {[%clk 0:01:10]} 16. Rfe1 {[%clk 0:02:05]}  Bxe2 {[%clk 0:01:09]} 17. Rxe2 {[%clk 0:02:04]}  Qxd4 {[%clk 0:01:10]} 18. Rd1 {[%clk 0:02:02]}  Qf6 {[%clk 0:01:08]} 19. c5 {[%clk 0:01:58]}  Nd5 {[%clk 0:00:50]} 20. Bxd5 {[%clk 0:01:57]}  cxd5 {[%clk 0:00:51]} 21. Rxd5 {[%clk 0:01:55]}  Rfd8 {[%clk 0:00:51]} 22. Qd2 {[%clk 0:01:52]}  e6 {[%clk 0:00:37]} 23. Rd6 {[%clk 0:01:50]}  b6 {[%clk 0:00:32]} 24. b4 {[%clk 0:01:46]}  Rac8 {[%clk 0:00:23]} 25. f3 {[%clk 0:01:30]}  Qe7 {[%clk 0:00:17]} 26. Qd4 {[%clk 0:01:15]}  a5 {[%clk 0:00:13]} 27. a3 {[%clk 0:01:14]}  axb4 {[%clk 0:00:13]} 28. axb4 {[%clk 0:01:13]}  bxc5 {[%clk 0:00:13]} 29. bxc5 {[%clk 0:01:13]}  Rxd6 {[%clk 0:00:13]} 30. cxd6 {[%clk 0:01:11]}  Qb7 {[%clk 0:00:09]} 31. d7 {[%clk 0:01:06]}  Rd8 {[%clk 0:00:09]} 32. Rd2 {[%clk 0:01:05]}  Qc6 {[%clk 0:00:06]} 33. h4 {[%clk 0:01:04]}  h5 {[%clk 0:00:05]} 34. Kf2 {[%clk 0:00:58]}  Kh7 {[%clk 0:00:05]} 35. Qd6 {[%clk 0:00:53]}  Qxd6 {[%clk 0:00:04]} 36. Rxd6 {[%clk 0:00:53]}  Kg7 {[%clk 0:00:05]} 37. Ke3 {[%clk 0:00:53]}  Kf6 {[%clk 0:00:05]} 38. Kd4 {[%clk 0:00:52]}  Ke7 {[%clk 0:00:05]} 39. Ke5 {[%clk 0:00:52]}  f6+ {[%clk 0:00:05]} 40. Ke4 {[%clk 0:00:50]}  Kxd6 {[%clk 0:00:06]} 41. g4 {[%clk 0:00:48]}  hxg4 {[%clk 0:00:05]} 42. fxg4 {[%clk 0:00:47]}  f5+ {[%clk 0:00:06]} 43. Kf4 {[%clk 0:00:46]}  fxg4 {[%clk 0:00:06]} 44. Kxg4 {[%clk 0:00:46]}  Rxd7 {[%clk 0:00:07]} 45. Kg5 {[%clk 0:00:46]}  Rg7 {[%clk 0:00:07]} 46. Kf6 {[%clk 0:00:45]}  Rh7 {[%clk 0:00:07]} 47. Kxg6 {[%clk 0:00:43]}  Rxh4 {[%clk 0:00:08]} 0-1


[Site "https://www.chess.com"]

[Event "Titled Tuesday Blitz July 4 Late 2023"]
[White "Coelho, Ramyres Santana"]
[Black "Horokoskii"]
[WhiteFideId "2120690"]
[WhiteElo "2295"]
[BlackElo "2086"]
[Result "0-1"]
[Round "8"]
[TimeControl "180+2"]
[Date "2023.07.04"]
[WhiteClock "0:00:02"]
[BlackClock "0:00:09"]
[Board "126"]

1. e4 {[%clk 0:02:02]}  e6 {[%clk 0:02:57]} 2. d4 {[%clk 0:01:59]}  d5 {[%clk 0:02:57]} 3. Nc3 {[%clk 0:01:59]}  Nf6 {[%clk 0:02:56]} 4. e5 {[%clk 0:01:59]}  Nfd7 {[%clk 0:02:57]} 5. f4 {[%clk 0:02:00]}  c5 {[%clk 0:02:57]} 6. Nf3 {[%clk 0:02:01]}  Nc6 {[%clk 0:02:58]} 7. Be3 {[%clk 0:02:01]}  a6 {[%clk 0:02:58]} 8. dxc5 {[%clk 0:02:00]}  Bxc5 {[%clk 0:02:59]} 9. Bxc5 {[%clk 0:02:00]}  Nxc5 {[%clk 0:02:59]} 10. Nd4 {[%clk 0:02:01]}  Qb6 {[%clk 0:02:48]} 11. Nxc6 {[%clk 0:01:58]}  bxc6 {[%clk 0:02:41]} 12. Rb1 {[%clk 0:01:48]}  a5 {[%clk 0:02:41]} 13. Bd3 {[%clk 0:01:45]}  Ba6 {[%clk 0:02:38]} 14. Bxa6 {[%clk 0:01:44]}  Qxa6 {[%clk 0:02:38]} 15. Qe2 {[%clk 0:01:42]}  Qb6 {[%clk 0:02:27]} 16. Qf2 {[%clk 0:01:18]}  O-O {[%clk 0:02:24]} 17. O-O {[%clk 0:01:18]}  Rab8 {[%clk 0:02:23]} 18. Kh1 {[%clk 0:01:15]}  f5 {[%clk 0:02:21]} 19. exf6 {[%clk 0:01:14]}  Rxf6 {[%clk 0:02:21]} 20. Qd4 {[%clk 0:01:03]}  Qb4 {[%clk 0:02:13]} 21. Qe5 {[%clk 0:00:58]}  Rbf8 {[%clk 0:02:04]} 22. g3 {[%clk 0:00:51]}  Rf5 {[%clk 0:01:49]} 23. Qd6 {[%clk 0:00:45]}  R5f6 {[%clk 0:01:19]} 24. a3 {[%clk 0:00:44]}  Qb6 {[%clk 0:01:13]} 25. b4 {[%clk 0:00:39]}  Nb7 {[%clk 0:01:06]} 26. Qe5 {[%clk 0:00:23]}  Nd8 {[%clk 0:01:06]} 27. bxa5 {[%clk 0:00:22]}  Qxa5 {[%clk 0:01:07]} 28. Rb8 {[%clk 0:00:16]}  Rf5 {[%clk 0:01:01]} 29. Qd4 {[%clk 0:00:13]}  c5 {[%clk 0:00:57]} 30. Qd3 {[%clk 0:00:09]}  Qxa3 {[%clk 0:00:48]} 31. Rfb1 {[%clk 0:00:07]}  c4 {[%clk 0:00:43]} 32. Qd4 {[%clk 0:00:06]}  Nc6 {[%clk 0:00:30]} 33. Rxf8+ {[%clk 0:00:04]}  Rxf8 {[%clk 0:00:31]} 34. Qd2 {[%clk 0:00:01]}  Qd6 {[%clk 0:00:23]} 35. Nb5 {[%clk 0:00:02]}  Qc5 {[%clk 0:00:22]} 36. Nc3 {[%clk 0:00:03]}  d4 {[%clk 0:00:22]} 37. Ne2 {[%clk 0:00:03]}  Qd5+ {[%clk 0:00:21]} 38. Kg1 {[%clk 0:00:04]}  d3 {[%clk 0:00:21]} 39. cxd3 {[%clk 0:00:03]}  cxd3 {[%clk 0:00:21]} 40. Nc3 {[%clk 0:00:04]}  Qd4+ {[%clk 0:00:21]} 41. Kf1 {[%clk 0:00:03]}  Rd8 {[%clk 0:00:20]} 42. Rd1 {[%clk 0:00:04]}  e5 {[%clk 0:00:19]} 43. fxe5 {[%clk 0:00:04]}  Nxe5 {[%clk 0:00:20]} 44. Nb5 {[%clk 0:00:03]}  Qd5 {[%clk 0:00:19]} 45. Nc3 {[%clk 0:00:02]}  Qh1+ {[%clk 0:00:18]} 46. Kf2 {[%clk 0:00:02]}  Qxh2+ {[%clk 0:00:18]} 47. Ke3 {[%clk 0:00:02]}  Qxg3+ {[%clk 0:00:16]} 48. Ke4 {[%clk 0:00:02]}  Ng6 {[%clk 0:00:12]} 49. Qa2+ {[%clk 0:00:01]}  Kh8 {[%clk 0:00:11]} 50. Nd5 {[%clk 0:00:01]}  Qe5+ {[%clk 0:00:11]} 51. Kxd3 {[%clk 0:00:01]}  Qxd5+ {[%clk 0:00:10]} 52. Ke2 {[%clk 0:00:01]}  Qxa2+ {[%clk 0:00:10]} 53. Kf3 {[%clk 0:00:01]}  Rxd1 {[%clk 0:00:09]} 54. Kg3 {[%clk 0:00:02]}  Rd3+ {[%clk 0:00:08]} 55. Kg4 {[%clk 0:00:02]}  Qc4+ {[%clk 0:00:09]} 56. Kg5 {[%clk 0:00:02]}  Rd5# {[%clk 0:00:09]} 0-1


[Site "https://www.chess.com"]

[Event "Titled Tuesday Blitz July 4 Late 2023"]
[White "Upper, John"]
[Black "Antonio, Jorge Carlos"]
[WhiteFideId "2606437"]
[BlackFideId "113190"]
[WhiteElo "1943"]
[BlackElo "2288"]
[Result "0-1"]
[Round "8"]
[TimeControl "180+2"]
[Date "2023.07.04"]
[WhiteClock "0:00:00"]
[BlackClock "0:00:22"]
[Board "127"]

1. d4 {[%clk 0:03:00]}  d5 {[%clk 0:02:54]} 2. Nf3 {[%clk 0:03:00]}  c6 {[%clk 0:02:55]} 3. e3 {[%clk 0:02:58]}  Nf6 {[%clk 0:02:52]} 4. Bd3 {[%clk 0:02:57]}  Bg4 {[%clk 0:02:51]} 5. h3 {[%clk 0:02:57]}  Bh5 {[%clk 0:02:42]} 6. c4 {[%clk 0:02:53]}  e6 {[%clk 0:02:41]} 7. Nc3 {[%clk 0:02:52]}  Bg6 {[%clk 0:02:38]} 8. Qc2 {[%clk 0:02:42]}  Nbd7 {[%clk 0:02:36]} 9. O-O {[%clk 0:02:41]}  Bd6 {[%clk 0:02:30]} 10. Rd1 {[%clk 0:02:35]}  Bxd3 {[%clk 0:02:25]} 11. Qxd3 {[%clk 0:02:35]}  O-O {[%clk 0:02:23]} 12. e4 {[%clk 0:02:32]}  dxe4 {[%clk 0:02:22]} 13. Nxe4 {[%clk 0:02:33]}  Nxe4 {[%clk 0:02:18]} 14. Qxe4 {[%clk 0:02:34]}  Nf6 {[%clk 0:02:15]} 15. Qe2 {[%clk 0:02:34]}  Qc7 {[%clk 0:02:09]} 16. Bg5 {[%clk 0:02:22]}  Nd7 {[%clk 0:02:04]} 17. Rac1 {[%clk 0:02:00]}  Rae8 {[%clk 0:02:00]} 18. Ne5 {[%clk 0:01:45]}  Nxe5 {[%clk 0:01:56]} 19. dxe5 {[%clk 0:01:42]}  Bxe5 {[%clk 0:01:54]} 20. Be3 {[%clk 0:01:19]}  b6 {[%clk 0:01:39]} 21. c5 {[%clk 0:01:17]}  b5 {[%clk 0:01:35]} 22. Bd4 {[%clk 0:01:10]}  Bxd4 {[%clk 0:01:32]} 23. Rxd4 {[%clk 0:01:11]}  Rd8 {[%clk 0:01:30]} 24. Rcd1 {[%clk 0:01:09]}  Rd5 {[%clk 0:01:29]} 25. Rxd5 {[%clk 0:01:06]}  exd5 {[%clk 0:01:25]} 26. Re1 {[%clk 0:01:02]}  Qa5 {[%clk 0:01:20]} 27. a3 {[%clk 0:00:59]}  h6 {[%clk 0:01:15]} 28. Qe7 {[%clk 0:00:52]}  Qd2 {[%clk 0:01:10]} 29. Re2 {[%clk 0:00:51]}  Qc1+ {[%clk 0:01:05]} 30. Kh2 {[%clk 0:00:51]}  Qc4 {[%clk 0:01:00]} 31. Re3 {[%clk 0:00:39]}  d4 {[%clk 0:00:57]} 32. Re4 {[%clk 0:00:35]}  Qd5 {[%clk 0:00:51]} 33. Re2 {[%clk 0:00:16]}  d3 {[%clk 0:00:45]} 34. Rd2 {[%clk 0:00:16]}  g6 {[%clk 0:00:39]} 35. f4 {[%clk 0:00:12]}  Rd8 {[%clk 0:00:35]} 36. Qe3 {[%clk 0:00:10]}  Qd4 {[%clk 0:00:31]} 37. Qxd4 {[%clk 0:00:04]}  Rxd4 {[%clk 0:00:31]} 38. Kg3 {[%clk 0:00:04]}  f5 {[%clk 0:00:26]} 39. Kf3 {[%clk 0:00:05]}  Rc4 {[%clk 0:00:26]} 40. Ke3 {[%clk 0:00:04]}  Rxc5 {[%clk 0:00:25]} 41. Rxd3 {[%clk 0:00:03]}  Kf7 {[%clk 0:00:22]} 42. Rd7+ {[%clk 0:00:02]}  Ke6 {[%clk 0:00:22]} 43. Rxa7 {[%clk 0:00:00]}  Rc2 {[%clk 0:00:22]} 0-1


[Site "https://www.chess.com"]

[Event "Titled Tuesday Blitz July 4 Late 2023"]
[White "Graham, Nathaniel"]
[Black "Cardenas Carbajal, Nilson"]
[WhiteFideId "2007983"]
[BlackFideId "8401128"]
[WhiteElo "2063"]
[BlackElo "2111"]
[Result "1-0"]
[Round "8"]
[TimeControl "180+2"]
[Date "2023.07.04"]
[WhiteClock "0:02:55"]
[BlackClock "0:02:15"]
[Board "130"]

1. e4 {[%clk 0:03:00]}  e5 {[%clk 0:02:56]} 2. Nf3 {[%clk 0:03:01]}  Nc6 {[%clk 0:02:56]} 3. Nc3 {[%clk 0:03:02]}  Nf6 {[%clk 0:02:54]} 4. Bb5 {[%clk 0:03:02]}  Nd4 {[%clk 0:02:54]} 5. Nxd4 {[%clk 0:03:01]}  exd4 {[%clk 0:02:54]} 6. e5 {[%clk 0:03:02]}  dxc3 {[%clk 0:02:54]} 7. exf6 {[%clk 0:03:03]}  cxd2+ {[%clk 0:02:38]} 8. Bxd2 {[%clk 0:03:00]}  Qxf6 {[%clk 0:02:38]} 9. O-O {[%clk 0:03:00]}  Be7 {[%clk 0:02:37]} 10. Bc3 {[%clk 0:02:58]}  Qg5 {[%clk 0:02:32]} 11. Re1 {[%clk 0:02:58]}  Qxb5 {[%clk 0:02:26]} 12. Qg4 {[%clk 0:02:57]}  O-O {[%clk 0:02:15]} 13. Qxg7# {[%clk 0:02:55]} 1-0


[Site "https://www.chess.com"]

[Event "Titled Tuesday Blitz July 4 Late 2023"]
[White "Winkels, Marcel"]
[Black "Alimpic, Aleksa"]
[WhiteFideId "1003887"]
[BlackFideId "974323"]
[WhiteElo "2079"]
[BlackElo "2318"]
[Result "1/2-1/2"]
[Round "8"]
[TimeControl "180+2"]
[Date "2023.07.04"]
[WhiteClock "0:00:20"]
[BlackClock "0:00:15"]
[Board "131"]

1. e4 {[%clk 0:03:00]}  g6 {[%clk 0:03:00]} 2. d4 {[%clk 0:03:00]}  Bg7 {[%clk 0:03:01]} 3. Nc3 {[%clk 0:03:00]}  a6 {[%clk 0:03:00]} 4. a4 {[%clk 0:02:59]}  d6 {[%clk 0:03:00]} 5. Be3 {[%clk 0:02:57]}  Nd7 {[%clk 0:02:44]} 6. f4 {[%clk 0:02:53]}  e6 {[%clk 0:02:35]} 7. Nf3 {[%clk 0:02:46]}  Ne7 {[%clk 0:02:35]} 8. Bd3 {[%clk 0:02:41]}  O-O {[%clk 0:02:25]} 9. O-O {[%clk 0:02:39]}  d5 {[%clk 0:02:16]} 10. Qe1 {[%clk 0:02:37]}  c5 {[%clk 0:01:32]} 11. exd5 {[%clk 0:01:59]}  Nxd5 {[%clk 0:01:25]} 12. Nxd5 {[%clk 0:01:51]}  exd5 {[%clk 0:01:26]} 13. Ne5 {[%clk 0:01:43]}  Re8 {[%clk 0:01:18]} 14. Qg3 {[%clk 0:01:38]}  cxd4 {[%clk 0:01:10]} 15. Bxd4 {[%clk 0:01:34]}  Nxe5 {[%clk 0:01:10]} 16. Bxe5 {[%clk 0:01:32]}  Bxe5 {[%clk 0:01:07]} 17. fxe5 {[%clk 0:01:32]}  Be6 {[%clk 0:01:07]} 18. b3 {[%clk 0:01:15]}  b5 {[%clk 0:00:56]} 19. axb5 {[%clk 0:01:13]}  axb5 {[%clk 0:00:46]} 20. Rxa8 {[%clk 0:01:06]}  Qxa8 {[%clk 0:00:47]} 21. Bxb5 {[%clk 0:01:05]}  Rc8 {[%clk 0:00:46]} 22. Bd3 {[%clk 0:01:04]}  Qa7+ {[%clk 0:00:43]} 23. Qf2 {[%clk 0:01:03]}  Qc7 {[%clk 0:00:42]} 24. Qd4 {[%clk 0:01:01]}  Ra8 {[%clk 0:00:31]} 25. h3 {[%clk 0:01:00]}  Ra2 {[%clk 0:00:23]} 26. Ra1 {[%clk 0:00:54]}  Rxa1+ {[%clk 0:00:22]} 27. Qxa1 {[%clk 0:00:53]}  Qc5+ {[%clk 0:00:23]} 28. Kh2 {[%clk 0:00:51]}  Qe3 {[%clk 0:00:22]} 29. Qa8+ {[%clk 0:00:32]}  Kg7 {[%clk 0:00:22]} 30. Qb8 {[%clk 0:00:30]}  Qf4+ {[%clk 0:00:22]} 31. Kg1 {[%clk 0:00:27]}  d4 {[%clk 0:00:16]} 32. Qd6 {[%clk 0:00:22]}  Qe3+ {[%clk 0:00:15]} 33. Kh2 {[%clk 0:00:21]}  Qf4+ {[%clk 0:00:15]} 34. Kg1 {[%clk 0:00:21]}  Qe3+ {[%clk 0:00:15]} 35. Kf1 {[%clk 0:00:20]}  Qc1+ {[%clk 0:00:15]} 36. Kf2 {[%clk 0:00:20]}  Qe3+ {[%clk 0:00:15]} 37. Kf1 {[%clk 0:00:20]}  Qc1+ {[%clk 0:00:14]} 38. Kf2 {[%clk 0:00:20]}  Qe3+ {[%clk 0:00:15]} 39. Kf1 {[%clk 0:00:20]} 1/2-1/2


[Site "https://www.chess.com"]

[Event "Titled Tuesday Blitz July 4 Late 2023"]
[White "Tqebuchava, Zurab"]
[Black "Oliveira, Tiago Batista"]
[WhiteFideId "13601113"]
[BlackFideId "2108291"]
[WhiteElo "2065"]
[BlackElo "2148"]
[Result "0-1"]
[Round "8"]
[TimeControl "180+2"]
[Date "2023.07.04"]
[WhiteClock "0:00:06"]
[BlackClock "0:01:05"]
[Board "133"]

1. e4 {[%clk 0:03:00]}  e5 {[%clk 0:02:58]} 2. Nf3 {[%clk 0:02:59]}  Nc6 {[%clk 0:02:58]} 3. Bb5 {[%clk 0:02:54]}  a6 {[%clk 0:02:58]} 4. Ba4 {[%clk 0:02:53]}  Nf6 {[%clk 0:02:57]} 5. O-O {[%clk 0:02:51]}  Nxe4 {[%clk 0:02:56]} 6. Re1 {[%clk 0:02:50]}  Nc5 {[%clk 0:02:56]} 7. Bxc6 {[%clk 0:02:48]}  dxc6 {[%clk 0:02:56]} 8. Nxe5 {[%clk 0:02:48]}  Be6 {[%clk 0:02:56]} 9. d4 {[%clk 0:02:43]}  Nd7 {[%clk 0:02:56]} 10. Nxd7 {[%clk 0:02:31]}  Qxd7 {[%clk 0:02:56]} 11. Bf4 {[%clk 0:02:24]}  O-O-O {[%clk 0:02:55]} 12. c3 {[%clk 0:02:19]}  Be7 {[%clk 0:02:31]} 13. Nd2 {[%clk 0:02:16]}  g5 {[%clk 0:02:31]} 14. Be5 {[%clk 0:02:13]}  f6 {[%clk 0:02:27]} 15. Bg3 {[%clk 0:02:13]}  f5 {[%clk 0:02:28]} 16. Qe2 {[%clk 0:02:11]}  f4 {[%clk 0:02:13]} 17. Qxe6 {[%clk 0:02:09]}  Qxe6 {[%clk 0:02:00]} 18. Rxe6 {[%clk 0:02:08]}  Kd7 {[%clk 0:01:58]} 19. Rae1 {[%clk 0:01:58]}  Rde8 {[%clk 0:01:54]} 20. Bxf4 {[%clk 0:01:44]}  gxf4 {[%clk 0:01:53]} 21. Nf3 {[%clk 0:01:40]}  Bd6 {[%clk 0:01:36]} 22. Rxe8 {[%clk 0:01:38]}  Rxe8 {[%clk 0:01:36]} 23. Rxe8 {[%clk 0:01:37]}  Kxe8 {[%clk 0:01:36]} 24. Kf1 {[%clk 0:01:32]}  Kf7 {[%clk 0:01:33]} 25. Ke2 {[%clk 0:01:32]}  Kg6 {[%clk 0:01:32]} 26. Kd3 {[%clk 0:01:26]}  Kf5 {[%clk 0:01:30]} 27. Nd2 {[%clk 0:01:20]}  c5 {[%clk 0:01:26]} 28. Ne4 {[%clk 0:01:14]}  c4+ {[%clk 0:01:24]} 29. Kxc4 {[%clk 0:01:05]}  Kxe4 {[%clk 0:01:24]} 30. b4 {[%clk 0:00:58]}  b5+ {[%clk 0:01:21]} 31. Kb3 {[%clk 0:00:56]}  Kd3 {[%clk 0:01:22]} 32. f3 {[%clk 0:00:36]}  h5 {[%clk 0:01:20]} 33. d5 {[%clk 0:00:31]}  Be5 {[%clk 0:01:18]} 34. a4 {[%clk 0:00:29]}  Bxc3 {[%clk 0:01:17]} 35. axb5 {[%clk 0:00:28]}  axb5 {[%clk 0:01:17]} 36. g3 {[%clk 0:00:27]}  fxg3 {[%clk 0:01:10]} 37. hxg3 {[%clk 0:00:26]}  Be1 {[%clk 0:01:10]} 38. g4 {[%clk 0:00:21]}  h4 {[%clk 0:01:10]} 39. g5 {[%clk 0:00:21]}  h3 {[%clk 0:01:09]} 40. g6 {[%clk 0:00:21]}  Bc3 {[%clk 0:01:07]} 41. d6 {[%clk 0:00:18]}  cxd6 {[%clk 0:01:07]} 42. g7 {[%clk 0:00:06]}  Bxg7 {[%clk 0:01:05]} 0-1


[Site "https://www.chess.com"]